Cogmind - Beta 9.2 @@@ ROGUE MODE // 2019.11.26 @ 01:14:24 Player: Fleshy Vegetable Bird Result: Destroyed by G-47 Trooper with Particle Gun Performance ------------- Evolutions (2) 1000 Regions Visited (6) 1200 Robots Destroyed (40) 200 Value Destroyed (905) 905 Prototype IDs (22) 440 Alien Tech Used (0) 0 Bonus (594) 594 TOTAL SCORE: 4339 Bonus ------- High Alert Combat Kills 24 Follower Combat Kills 70 Entered Garrisons 200 Aligned with FarCom 300 Cogmind --------- Core Integrity 0/550 Matter 12/300 Energy 100/100 System Corruption 0% Temperature Cool (9) Movement Core (800) Ox15 Location -8/Garrison Parts ------- > --- POWER (1) -------- (None) > --- PROPULSION (3) --- (None) > --- UTILITY (5) ------ Large Storage Unit High-capacity Storage Unit > --- WEAPON (2) ------- (None) > --- INVENTORY (18) --- Nuclear Core Fission Core Fission Core Large Storage Unit Improved Sensor Array Terrain Scan Processor Target Analyzer Improved Light Armor Plating Beamcaster Firepult Mini Grenade Launcher Improved Datajack Mining Laser Peak State ------------ > --- POWER ------------ (None) > --- PROPULSION ------- (None) > --- UTILITY ---------- Large Storage Unit High-capacity Storage Unit > --- WEAPON ----------- Firepult > --- INVENTORY -------- Nuclear Core Fission Core Fission Core Large Storage Unit Improved Sensor Array Terrain Scan Processor Target Analyzer Improved Light Armor Plating Beamcaster Mini Grenade Launcher Improved Datajack Mining Laser [Rating: 25] Favorites ----------- Power Light Ion Engine Engine Light Ion Engine Propulsion Wheel Treads Light Treads Wheel Wheel Utility Large Storage Unit Storage Large Storage Unit Weapon Mini Grenade Launcher Energy Gun EM Pulse Gun Energy Cannon Firepult Launcher Mini Grenade Launcher Build | -11 -10 -10 -10 -9 -8 -8 ------- Run | Scr Mat Min Exi Min Mat Gar Slots Evolved 4 | . . . . . 4 . Power . | . . . . . . . Propulsion 1 | . . . . . 1 . Utility 3 | . . . . . 3 . Weapon . | . . . . . . . Parts Attached 29 | 7 3 7 4 2 1 5 Power 4 | 1 . 2 1 . . . Engine 4 | 1 . 2 1 . . . Core . | . . . . . . . Reactor . | . . . . . . . Propulsion 11 | 3 1 2 . 2 1 2 Treads 5 | . . . . 2 1 2 Leg . | . . . . . . . Wheel 6 | 3 1 2 . . . . Hover . | . . . . . . . Flight . | . . . . . . . Utility 4 | 1 2 . 1 . . . Device . | . . . . . . . Storage 4 | 1 2 . 1 . . . Processor . | . . . . . . . Hackware . | . . . . . . . Protection . | . . . . . . . Artifact . | . . . . . . . Weapon 10 | 2 . 3 2 . . 3 Energy Gun 5 | 2 . 2 . . . 1 Energy Cannon 1 | . . . . . . 1 Ballistic Gun . | . . . . . . . Ballistic Cannon . | . . . . . . . Launcher 4 | . . 1 2 . . 1 Special Weapon . | . . . . . . . Impact Weapon . | . . . . . . . Slashing Weapon . | . . . . . . . Piercing Weapon . | . . . . . . . Special Melee Weapon . | . . . . . . . Unidentified Prototypes . | . . . . . . . Parts Lost 19 | . 2 7 . 3 . 7 Power 3 | . . 2 . 1 . . Propulsion 10 | . 1 2 . 2 . 5 Utility . | . . . . . . . Weapon 6 | . 1 3 . . . 2 Highest Loss Streak 7 | . 2 2 . 2 . 7 Average Slot Usage (%) 77 | . 82 87 98 73 63 45 Engine 8 | . 14 13 14 . . . Treads 5 | . . . . 7 27 16 Wheel 18 | . 27 27 28 8 . . Storage 24 | . 17 28 28 28 18 18 Energy Gun 9 | . 22 15 . . . 4 Launcher 10 | . . 2 26 28 18 7 Naked Turns . | . . . . . . . Heaviest Build 54 | 11 37 39 53 53 50 54 Greatest Support 60 | 26 20 20 20 40 60 60 Greatest Overweight (x) 16 | . 1 3 2 16 . 16 Average Overweight (x) 1 | . . 1 1 3 . 1 Largest Inventory Capacity 18 | 6 16 16 18 18 18 18 Average Capacity 15 | 5 8 16 16 18 18 18 Most Carried 17 | 5 15 16 17 17 16 16 Average Carried 13 | 3 6 14 16 16 14 15 Final Capacity 18 | 6 16 16 18 18 18 18 Final Carried 17 | 5 15 15 17 15 16 14 Class Distribution -------------------- 100% | Mutant Dominant Class ---------------- Mutant | -10/Materials Mutant | -10/Mines Mutant | -10/Exiles Mutant | -9/Mines Mutant | -8/Materials Mutant | -8/Garrison Resources | -11 -10 -10 -10 -9 -8 -8 ----------- Run | Scr Mat Min Exi Min Mat Gar Matter Collected 621 | 259 16 190 . 85 . 71 Remotely . | . . . . . . . Salvage Created 964 | 130 189 376 . 105 . 164 Parts 51 | 6 8 21 . 8 . 8 Haulers Intercepted . | . . . . . . . Recyclers Shooed 4 | 2 . 2 . . . . Parts Field Recycled . | . . . . . . . Retrieved Matter . | . . . . . . . Parts Self-Destructed . | . . . . . . . Prevented . | . . . . . . . Kills | -11 -10 -10 -10 -9 -8 -8 ------- Run | Scr Mat Min Exi Min Mat Gar Combat Hostiles Destroyed 31 | . 2 10 . 10 . 9 Guns 9 | . 2 7 . . . . AOE 22 | . . 3 . 10 . 9 Classes Destroyed 12 | 2 4 3 . 1 . 2 Worker 1 | . . 1 . . . . Builder 1 | . 1 . . . . . Tunneler 1 | 1 . . . . . . Recycler 4 | 1 . 3 . . . . Mechanic 1 | . 1 . . . . . Watcher 1 | . 1 . . . . . Swarmer 11 | . . 4 . 7 . . Grunt 11 | . 2 1 . 2 . 6 Brawler 1 | . . . . 1 . . Sentry 2 | . . . . . . 2 Hunter 1 | . . . . . . 1 Assembled 5 | . . 5 . . . . Best Kill Streak 7 | 1 4 3 . 7 . 3 Combat Bots Only 7 | . 1 3 . 7 . 3 Max Kills in Single Turn 4 | 1 2 2 . 4 . 2 Gunslinging . | . . . . . . . Exploded 4 | . . 1 . 4 . 2 Melee . | . . . . . . . Uniques/NPCs Destroyed . | . . . . . . . Combat | -11 -10 -10 -10 -9 -8 -8 -------- Run | Scr Mat Min Exi Min Mat Gar Damage Taken 2414 | . 267 340 . 142 294 1371 Core 709 | . 74 37 . 40 106 452 Absorbed by Shields . | . . . . . . . Core Remaining (%) 69 | 100 . . . 39 . . Volleys Fired 99 | 12 23 35 . 6 1 22 Largest 2 | 2 2 2 . 2 1 2 Hottest 250 | 90 90 80 . 60 30 250 Shots Fired 159 | 24 38 50 . 12 1 34 Gun 109 | 24 38 40 . . . 7 Cannon 1 | . . . . . . 1 Launcher 49 | . . 10 . 12 1 26 Special . | . . . . . . . Kinetic . | . . . . . . . Thermal 35 | 12 15 . . . . 8 Explosive 49 | . . 10 . 12 1 26 Electromagnetic 75 | 12 23 40 . . . . Robot Hit Streak 9 | 4 7 5 . 3 . 9 Robot Miss Streak 6 | 3 4 5 . 6 . 2 Penetration Max . | . . . . . . . Secondary Targets . | . . . . . . . Shots Hit Robots 74 | 13 22 19 . 3 . 17 Core Hits 80 | 3 9 23 . 19 . 26 Critical Hits . | . . . . . . . Critical Kills . | . . . . . . . Critical Parts Destroyed . | . . . . . . . Melee Attacks . | . . . . . . . Impact . | . . . . . . . Slashing . | . . . . . . . Piercing . | . . . . . . . Sneak Attacks . | . . . . . . . Combat Hostiles . | . . . . . . . Follow-up Attacks . | . . . . . . . Damage Inflicted 3337 | 143 437 687 . 646 16 1408 Guns 817 | 143 370 221 . . . 83 Cannons 16 | . . . . . . 16 Explosions 2487 | . 67 466 . 646 . 1308 Melee . | . . . . . . . Ramming 17 | . . . . . 16 1 Kinetic . | . . . . . . . Thermal 368 | 49 153 . . 42 . 124 Explosive 2353 | . . 466 . 604 . 1283 Electromagnetic 599 | 94 284 221 . . . . Impact . | . . . . . . . Slashing . | . . . . . . . Piercing . | . . . . . . . Highest Corruption 1 | . 1 1 1 1 . . Average Corruption 1 | . 1 1 1 1 . . Corruption Purged . | . . . . . . . Effects 6 | . 2 3 . 1 . . Message Errors 3 | . 2 1 . . . . Data Loss (minor) 1 | . . . . 1 . . Targeting Errors 2 | . . 2 . . . . Overload Shots . | . . . . . . . Overflow Damage 87 | . 11 45 . 13 . 18 Projectiles . | . . . . . . . Explosions 87 | . 11 45 . 13 . 18 Melee . | . . . . . . . Knockbacks . | . . . . . . . Impact . | . . . . . . . Kinetic . | . . . . . . . Secondary . | . . . . . . . Self-Inflicted Damage 261 | . 37 22 . 87 27 88 Shots 11 | . 1 2 . 3 1 4 Rammed 4 | . . . . . 2 2 Targets Rammed 4 | . . . . . 2 2 Kicked . | . . . . . . . Crushed . | . . . . . . . Highest Temperature 270 | 210 270 114 . . . 188 Average Temperature 73 | 90 92 35 . . . 68 Received Heat Transfer 818 | . 129 95 . . 153 441 Siege Activations . | . . . . . . . Robots Corrupted . | . . . . . . . Combat Hostiles . | . . . . . . . Parts Fried 3 | 1 1 1 . . . . Impact Corruptions . | . . . . . . . Robots Melted . | . . . . . . . Combat Hostiles . | . . . . . . . Parts Melted . | . . . . . . . Heat Transferred 865 | 148 359 . . 50 . 308 Parts Sabotaged . | . . . . . . . Parts Stolen . | . . . . . . . Parts Stripped . | . . . . . . . Power Chain Reactions 1 | . 1 . . . . . Missiles Intercepted . | . . . . . . . Alert | -11 -10 -10 -10 -9 -8 -8 ------- Run | Scr Mat Min Exi Min Mat Gar Peak Influence 409 | 10 135 185 . 245 169 409 Average Influence 131 | 4 69 74 . 188 133 278 Maximum Alert Level 2 | . . . . 1 . 2 Low Security (%) 87 | 100 100 100 . 86 100 48 Level 1 5 | . . . . 13 . 15 Level 2 7 | . . . . . . 36 Level 3 . | . . . . . . . Level 4 . | . . . . . . . Level 5 . | . . . . . . . High Security . | . . . . . . . Max Security . | . . . . . . . Squads Dispatched 4 | . . 1 . . 3 . Investigation 1 | . . . . . 1 . Extermination . | . . . . . . . Reinforcement 1 | . . . . . 1 . Assault 1 | . . 1 . . . . Garrison 1 | . . . . . 1 . Intercept . | . . . . . . . Construction Impeded . | . . . . . . . Haulers Reinforced . | . . . . . . . Stealth | -11 -10 -10 -10 -9 -8 -8 --------- Run | Scr Mat Min Exi Min Mat Gar Distress Signals 3 | . 1 1 . . 1 . Communications Jammed . | . . . . . . . Distress Signals . | . . . . . . . Times Spotted 46 | . 9 16 . 5 5 11 Peak Tracking Total 5 | . 3 3 . 3 5 3 Tactical Retreats 6 | . 2 2 . . . 2 Traps | -11 -10 -10 -10 -9 -8 -8 ------- Run | Scr Mat Min Exi Min Mat Gar Traps Triggered 1 | . 1 . . . . . Indirectly . | . . . . . . . Trap Hack Attempts . | . . . . . . . Triggered . | . . . . . . . Disarmed . | . . . . . . . Reprogrammed . | . . . . . . . Reused . | . . . . . . . Traps Extracted . | . . . . . . . Installed . | . . . . . . . Triggered . | . . . . . . . Machines | -11 -10 -10 -10 -9 -8 -8 ---------- Run | Scr Mat Min Exi Min Mat Gar Machines Disabled 8 | . . 6 . 2 . . Max in Single Turn 2 | . . 2 . 1 . . Machines Sabotaged . | . . . . . . . Garrisons Compromised . | . . . . . . . Overloaded Fab Kills . | . . . . . . . Fab Network Shutdowns . | . . . . . . . Hacking | -11 -10 -10 -10 -9 -8 -8 --------- Run | Scr Mat Min Exi Min Mat Gar Machines Accessed 4 | . 1 . 1 . 2 . Terminals 1 | . 1 . . . . . Fabricators . | . . . . . . . Repair Stations . | . . . . . . . Recycling Units . | . . . . . . . Scanalyzers 1 | . . . . . 1 . Garrison Access 1 | . . . . . 1 . Total Hacks 10 | . 2 . 1 . 7 . Successful 7 | . 1 . 1 . 5 . Failed 3 | . 1 . . . 2 . Catastrophic . | . . . . . . . Database Lockouts . | . . . . . . . Manual 3 | . 2 . 1 . . . Terminals 2 | . 2 . . . . . Fabricators . | . . . . . . . Repair Stations . | . . . . . . . Recycling Units . | . . . . . . . Scanalyzers 5 | . . . . . 5 . Garrison Access 2 | . . . . . 2 . Terminal Hacks 2 | . 1 . 1 . . . Part Schematic 1 | . 1 . . . . . EX-Prototype ID Bank 1 | . . . 1 . . . Fabricator Hacks . | . . . . . . . Repair Station Hacks . | . . . . . . . Recycling Unit Hacks . | . . . . . . . Scanalyzer 4 | . . . . . 4 . Insert Component 1 | . . . . . 1 . Analyze 3 | . . . . . 3 . Garrison Access Hacks 1 | . . . . . 1 . Unlock Access 1 | . . . . . 1 . Unauthorized Hacks . | . . . . . . . Terminals . | . . . . . . . Fabricators . | . . . . . . . Repair Stations . | . . . . . . . Recycling Units . | . . . . . . . Scanalyzers . | . . . . . . . Garrison Access . | . . . . . . . Data Cores Recovered . | . . . . . . . Used . | . . . . . . . Hacking Detections 3 | . 1 . . . 2 . Full Trace Events 1 | . . . . . 1 . Feedback Events . | . . . . . . . Feedback Blocked . | . . . . . . . Robot Schematics Acquired . | . . . . . . . Robots Built . | . . . . . . . Matter . | . . . . . . . Time . | . . . . . . . Total Robot Build Rating . | . . . . . . . Part Schematics Acquired 2 | . 1 . . . 1 . Parts Built . | . . . . . . . Matter . | . . . . . . . Time . | . . . . . . . Total Part Build Rating . | . . . . . . . Parts Repaired . | . . . . . . . Time . | . . . . . . . Parts Recycled . | . . . . . . . Recycled Matter . | . . . . . . . Retrieved Matter . | . . . . . . . Retrieved Components . | . . . . . . . Parts Scanalyzed 1 | . . . . . 1 . Part Schematics Acquired 1 | . . . . . 1 . Parts Damaged . | . . . . . . . Bothacking | -11 -10 -10 -10 -9 -8 -8 ------------ Run | Scr Mat Min Exi Min Mat Gar Used RIF Installer . | . . . . . . . Robots Hacked . | . . . . . . . Non-combat . | . . . . . . . Combat . | . . . . . . . Robot Hacks Applied . | . . . . . . . Relay Couplers Released . | . . . . . . . Robots Rewired . | . . . . . . . Allies Hacked . | . . . . . . . Hacks Repelled . | . . . . . . . Allies | -11 -10 -10 -10 -9 -8 -8 -------- Run | Scr Mat Min Exi Min Mat Gar Total Allies 1 | . . . . 1 . . Largest Group 1 | . . . . 1 1 . Highest-Rated Group 31 | . . . . 31 31 . Highest-Rated Ally 31 | . . . . 31 31 . Total Orders . | . . . . . . . Ally Attacks 18 | . . . . . 18 . Total Damage 271 | . . . . . 271 . Kills 2 | . . . . . 2 . Allies Corrupted . | . . . . . . . Allies Melted . | . . . . . . . Intel | -11 -10 -10 -10 -9 -8 -8 ------- Run | Scr Mat Min Exi Min Mat Gar Robot Analysis Total . | . . . . . . . Derelict Logs Recovered 4 | . . 3 . 1 . . Drone Launches . | . . . . . . . Drone Recoveries . | . . . . . . . Exploration | -11 -10 -10 -10 -9 -8 -8 ------------- Run | Scr Mat Min Exi Min Mat Gar Turns Passed 2180 | 113 314 683 270 307 121 372 Spaces Moved 1349 | 65 245 375 282 186 66 130 Core 21 | 4 . . . 4 . 13 Treads 229 | . . . . 46 66 117 Legs . | . . . . . . . Wheels 1099 | 61 245 375 282 136 . . Hover . | . . . . . . . Flight . | . . . . . . . Fastest Speed 50 | 50 80 90 90 100 160 160 Average Speed 113 | 83 83 90 90 150 160 228 Slowest Speed 850 | 90 90 110 100 850 160 850 Overloaded Moves . | . . . . . . . Propulsion Burnouts . | . . . . . . . Robots Hopped . | . . . . . . . Cave-ins Triggered . | . . . . . . . Exploration Rate (%) 43 | 5 58 61 69 55 11 43 Regions Visited 6 Branch Regions 3 Pre-discovered Areas 1 | . . 1 . . . . Known Exits Taken 2 | . . . . 1 1 . Unknown Exits Taken 4 | 1 1 1 1 . . . Scrap Searched 3 | . . 2 . 1 . . Spaces Dug 10 | . . . . . 10 . Terrain Destroyed 247 | . 3 46 . 94 10 94 Melee . | . . . . . . . Projectile . | . . . . . . . AOE 247 | . 3 46 . 94 10 94 Actions | -11 -10 -10 -10 -9 -8 -8 --------- Run | Scr Mat Min Exi Min Mat Gar Total 1824 | 99 318 669 295 202 79 162 Wait 294 | 3 32 240 . 9 8 2 Move 1343 | 64 244 374 281 185 65 130 Hop . | . . . . . . . Pick Up 44 | 12 14 10 6 . 2 . Fast Attach . | . . . . . . . Attach 22 | 6 2 7 1 2 1 3 Detach 1 | . . . . . . 1 Swap 7 | 1 1 . 3 . . 2 Drop 10 | 1 2 3 4 . . . Fire 99 | 12 23 35 . 6 1 22 Melee . | . . . . . . . Ram 2 | . . . . . . 2 Kick . | . . . . . . . Crush 2 | . . . . . 2 . Escape Stasis . | . . . . . . . Rewire . | . . . . . . . Trap . | . . . . . . . Miscellaneous . | . . . . . . . Route ------- -11/Scrapyard -10/Materials (discovered 2 exits: [*Mat] / [*Min]) -10/Mines (discovered 3 exits: [*Mat x2] / *Exi) -10/Exiles -9/Mines (discovered 2 exits: *Mat x2) -8/Materials -8/Garrison History --------- Turn | Location | Event 15 | -11/Scrapyard | Discovered new exit (range 16) 114 | -11/Scrapyard | Entered Materials 305 | -10/Materials | Build established: Mutant 333 | -10/Materials | Discovered new exit (range 15) 394 | -10/Materials | Discovered new exit (range 9) 428 | -10/Materials | Entered Mines 429 | -10/Mines | Met a Derelict testing a Signal Generator 433 | -10/Mines | Found Signal Generator 452 | -10/Mines | Learned Materials terminal intel 471 | -10/Mines | Learned Materials emergency access door positions 471 | -10/Mines | Discovered new exit (range 7) 501 | -10/Mines | Met a Derelict bent on vengeance 507 | -10/Mines | Assembled infested the area 882 | -10/Mines | Discovered new exit (range 14) 1105 | -10/Mines | Deemed a non-threat by the Exiles lab entrance 1106 | -10/Mines | Discovered new exit (range 5) 1111 | -10/Mines | Entered Exiles 1149 | -10/Exiles | Met 8R-AWN 1162 | -10/Exiles | Met EX-HEX 1187 | -10/Exiles | Met EX-BIN 1199 | -10/Exiles | Aligned with FarCom system 1200 | -10/Exiles | Given EX-Vault access code 1224 | -10/Exiles | Opened EX-Vault 1233 | -10/Exiles | Found Firepult 1252 | -10/Exiles | Warned to stay clear of 0b10 Research branches 1308 | -10/Exiles | Met EX-DEC 1370 | -10/Exiles | Discovered new exit (range 14) 1381 | -10/Exiles | Left Exiles lab with Firepult 1381 | -10/Exiles | Entered Mines 1389 | -9/Mines | Core integrity fell below 50% 1409 | -9/Mines | Destroyed 7 combat bots 1637 | -9/Mines | Identified exit to Materials 1651 | -9/Mines | Discovered exit to Materials (range 9) 1661 | -9/Mines | Escorted by a lone wolf Derelict 1688 | -9/Mines | Entered Materials 1688 | -8/Materials | Accompanied by 1 ally 1688 | -8/Materials | Evolved 4 slots: Propulsion x1, Utility x3 1690 | -8/Materials | Loaded intel: 12 terminal locations 1727 | -8/Materials | Garrison activated, responded to threat 1807 | -8/Materials | Identified exit to Garrison 1809 | -8/Materials | Entered Garrison 1824 | -8/Garrison | Triggered checkpoint 1936 | -8/Garrison | Triggered checkpoint 1989 | -8/Garrison | Triggered checkpoint 2096 | -8/Garrison | Lost 7 parts (5n2w) 2122 | -8/Garrison | Core integrity fell below 50% 2158 | -8/Garrison | Core integrity fell below 20% 2181 | -8/Garrison | Destroyed by G-47 Trooper with Particle Gun Last Messages --------------- 02038_ Lgt. Treads destroyed. 02041_ Penetrated by Slug. 02041_ Mni. Grenade Launcher destroyed. 02043_ The unstable cave ceiling collapses. 02045_ Destroyed Assault Rifle. 02047_ Slug penetrates Earth. 02049_ Penetrated by Slug. 02054_ The unstable cave ceiling collapses. 02055_ Slug penetrates Wall. 02059_ Penetrated by Slug. 02061_ Lgt. Treads destroyed. 02062_ The unstable cave ceiling collapses. 02063_ Penetrated by Slug. 02065_ The unstable cave ceiling collapses. 02065_ Mni. Grenade Launcher destroyed. 02067_ Penetrated by Slug. 02070_ The unstable cave ceiling collapses. 02072_ H-55 Commando destroyed. 02081_ The unstable cave ceiling collapses. 02163_ Slammed into G-47 Trooper. Map ----- +----------------------------------------------------+ | ?# ^ ##### #???! !?????????????????? | | ?# #??#! !!????????????????? | | ?# #??######???????????????? | | ?# ## # #######???????????????????????? | | ?# ## ## ####?????????????????????????????? | | ?" #??????????????????????????????? | | ?" #??????????????????????????????? | | ?" #??????????????????????????????? | | ?" ^ #??????????????????????????????? | | ?# ## ## ###??????????????????????????????? | | ?# ## ## ############?????????????????????? | | #?????????????????????? | | #?###?????????????????? | | ?# #? #?????????????????? | | ?######""""############# #?# #?????????????????? | | ????????gg????????#????# #?# #?????????????????? | | ????????????#???### ##?# ### #?????????????????? | | ????????????# ?## # # ## ## #?????????????????? | | ????????????# # ## ### ##????????????????? | | ????????????# # # # # #????????????????? | | ????????????# # ## ## ##### ##???????? | | ????????????# ! = ^ ^^ #??????? | | ????????????# = ^^ #??????? | | ????????????## ## # ############??????? | | ????????????# # # #????????????????? | | ????????????### # # @ # #????????????????? | | ??????????????#### #####g #####????????????????? | | ?????????????????##?# # #????????????????????? | | ????????????????????## # ##????????????????????? | | ?????????????????????### #?????????????????????? | | ???????????????????????# #?????????????????????? | | ???????????????????????# #?????????????????????? | | ???????????????????????# #?????????????????????? | | ???????????????????????# #?????????????????????? | | ???????????????????????# #?????????????????????? | | ???????????????????????# #?????????????????????? | | ???????????????????????# #?????????????????????? | | ???????????????????????# #?????????????????????? | | ???????????????????????# #?????????????????????? | | ???????????????????????? #?????????????????????? | | ???????????????????????? #?????????????????????? | | ???????????????????????? ??????????????????????? | | ?????????????????????????????????????????????????? | | ?????????????????????????????????????????????????? | | ?????????????????????????????????????????????????? | | ?????????????????????????????????????????????????? | | ?????????????????????????????????????????????????? | | ?????????????????????????????????????????????????? | | ?????????????????????????????????????????????????? | | ?????????????????????????????????????????????????? | +----------------------------------------------------+ Best States ------------- Heat Dissipation 31 Energy Generation 10 Energy Capacity 125 Matter Stores 300 Matter Capacity 300 Sight Range 16 Terrain Scan Density 10 Evasion (%) 44 Recoil Reduction 3 Item Schematics ----------------- Hcp. Storage Unit | -10/Materials | Hacked Fission Core | -8/Materials | Scanalyzed Robot Schematics ------------------ None Fabricated ------------ Nothing Alien Tech Used ----------------- None Achievements -------------- None Challenges ------------ None Game ------ Seed HeartHeartKatana Manual? 0 Play Time 00:20:57 Cumulative 196.0 hours Start 2019.11.26 @ 00:55:49 End 2019.11.26 @ 01:14:24 Sessions 1 Manual Loads 0 Difficulty Rogue Special Mode None Game No. 269 Rogue 269 Adventurer 0 Explorer 0 Win Type - Total 2 Types 1/0/0/1/0/0/0 Lore% 52 Gallery% 74 Achievement% 51 Wizard Run 0 Options --------- ASCII 0 Keyboard 0 Movement Numpad Keybinds 0 Fullscreen 1 Font 16/Terminus Map View 75x55 Tactical HUD 1 Map Filters NONE Filters NONE Steam 1 RUN: 1150ee08-d3c7-4b1b-9695-d2abcd67a70b